fUSD/lending_fUSD_20240518
["ID","MTS","AMOUNT","RATE_DAILY","PERIOD"]
[327363194,1716021046736,-152.122204,0.00040998,14]
[327363195,1716021046746,-151.0,0.00040998,7]
[327363196,1716021046754,-151.0,0.00040998,14]
[327363197,1716021046763,-271.648447,0.00040998,14]
[327363198,1716021046772,-229.557741,0.00040998,14]
[327363199,1716021046781,-229.557741,0.00040998,14]
[327363200,1716021046790,-161.844586,0.00040998,14]
[327363201,1716021046799,-405.585098,0.00040998,14]
[327363202,1716021046808,-161.844586,0.00040998,14]
[327363203,1716021046817,-151.0,0.00040998,14]
[327363204,1716021046826,-405.585098,0.00040998,14]
[327363205,1716021046835,-151.0,0.00040998,14]
[327363206,1716021046844,-151.0,0.00040998,14]
[327363207,1716021046854,-469.725657,0.00040998,14]
[327363208,1716021046863,-151.0,0.00040998,14]
[327363209,1716021046872,-151.0,0.00040998,14]
[327363210,1716021046882,-469.725657,0.00040998,14]
[327363211,1716021046890,-151.0,0.00040998,14]
[327363212,1716021046900,-471.43552,0.00040998,14]
[327363213,1716021046909,-471.43552,0.00040998,14]
[327363214,1716021046919,-151.0,0.00040998,14]
[327363215,1716021046927,-151.0,0.00040998,14]
[327363216,1716021046937,-218.298755,0.00040998,14]
[327363217,1716021046945,-218.298755,0.00040998,14]
[327363218,1716021046955,-171.317288,0.00040998,14]
[327363219,1716021046964,-151.0,0.00040998,14]
[327363220,1716021046973,-151.0,0.00040998,14]
[327363221,1716021046982,-151.0,0.00040998,14]
[327363222,1716021046991,-151.0,0.00040998,14]
[327363223,1716021047000,-537.424149,0.00040998,14]
[327363224,1716021047009,-151.0,0.00040998,14]
[327363225,1716021047018,-537.424149,0.00040998,14]
[327363226,1716021047027,-151.0,0.00040998,14]
[327363227,1716021047037,-1306.8153093,0.00040999,5]
[327363228,1716021047046,-8955.86258276,0.00040999,30]
[327363229,1716021047055,-150.0,0.00040999,7]
[327363230,1716021047065,-150.0,0.00040999,7]
[327363231,1716021047074,-150.0,0.00040999,7]
[327363232,1716021047083,-150.0,0.00040999,7]
[327363233,1716021047093,-153.23620996,0.00040999,7]
[327363234,1716021047103,-50000.0,0.00041,21]
[327363235,1716021047113,-50000.0,0.00041,31]
[327363236,1716021047122,-553.66318284,0.00041,5]
[327363237,1716021047131,-1523889.26802705,0.00041,30]
[327363238,1716021047473,-348.64959659,0.00041,30]
[327363239,1716021047484,-2054.9561253,0.00041,30]
[327363240,1716021047496,-235934.32013757,0.00041,30]
[327363241,1716021047507,-1872.03742102,0.00041,30]
[327363242,1716021047523,-4294.43749449,0.00041,30]
[327363243,1716021048369,-1067.81353758,0.00017259,2]
[327363244,1716021048380,-455.24917089,0.00017259,2]
[327363245,1716021048391,-3500.0,0.00017259,2]
[327363246,1716021048403,-5501.14189452,0.00017259,2]
[327363247,1716021048413,-300.0,0.000408,14]
[327363248,1716021048422,-300.0,0.000409,14]
[327363249,1716021048431,-4853.45619711,0.00041,30]
[327363250,1716021048511,-10397.62039256,0.00041,30]
[327363251,1716021048532,-883.35637715,0.00041,30]
[327363252,1716021048544,-254942.03078806,0.00041,30]
[327363253,1716021048555,-1126.43968259,0.00041,30]
[327363254,1716021049182,-360.08234564,0.0004089,14]
[327363255,1716021049195,-706.79795336,0.0004089,14]
[327363256,1716021049205,-225.900194,0.0004089,14]
[327363257,1716021049215,-862.66927185,0.00040998,14]
[327363258,1716021049226,-204.21102715,0.00040998,14]
[327363259,1716021049236,-248.28405697,0.00041,30]
[327363260,1716021049251,-727.95,0.00041,30]
[327363261,1716021049328,-959.66047797,0.00038004,2]
[327363262,1716021049558,-694.56952203,0.00038004,2]
[327363263,1716021049571,-225.900194,0.00040998,14]
[327363264,1716021049581,-146.19829425,0.00041,30]
[327363265,1716021049636,-182793.92000173,0.00041,30]
[327363266,1716021049747,-3431.15037639,0.00041,30]
[327363267,1716021272648,8846.30764657,6.94e-05,2]
[327363268,1716021314860,945.36357135,6.94e-05,2]
[327363269,1716021332033,155.0,6.94e-05,2]
[327363270,1716021334917,1359.88263215,6.94e-05,2]
[327363271,1716021349975,234.06772659,6.94e-05,2]
[327363272,1716021354894,1180.74616678,6.94e-05,2]
[327363273,1716021491911,4778.63225656,6.94e-05,2]
[327363274,1716021491937,969.88020686,6.94e-05,2]
[327363314,1716022231693,-10524.20460299,0.00011999,2]
[327363316,1716022231702,-3000.0,0.00012,2]
[327363318,1716022231711,-2011.17916,0.000125,3]
[327363320,1716022231721,-939.10970596,0.00012999,2]
[327363322,1716022231730,-3000.0,0.00013,2]
[327363323,1716022231739,-4609.3293,0.00013873,2]
[327363324,1716022231749,-152.86,0.00013973,2]
[327363325,1716022231759,-158.32,0.00013973,2]
[327363326,1716022231769,-156.0,0.00013973,2]
[327363327,1716022231779,-618.72089771,0.00015,2]
[327363328,1716022231788,-150.99,0.00017474,2]
[327363329,1716022231798,-1400.45,0.00017474,2]
[327363330,1716022231807,-499.99,0.00019452,2]
[327363331,1716022231816,-472.11273273,0.00019725,2]
[327363332,1716022231825,-420.72839722,0.00025,2]
[327363333,1716022231837,-1129.27160278,0.00025,2]
[327363334,1716022231846,-155.69003604,0.00026972,2]
[327363335,1716022231856,-1600.0,0.00027,2]
[327363336,1716022231865,-716.17517575,0.00027163,2]
[327363337,1716022231908,-283.82482425,0.00027163,2]
[327363338,1716022231917,-155.15395439,0.00027676,2]
[327363339,1716022231996,-0.69604561,0.00027676,2]
[327363340,1716022232007,-1206.94721416,0.000281,2]
[327363341,1716022232018,-301.44505381,0.000281,2]
[327363347,1716022237706,-1080.35745664,0.000281,2]
[327363348,1716022237786,-3152.25027539,0.000281,2]
[327363349,1716022237796,-163.28,0.00028258,15]
[327363350,1716022237805,-250.0,0.00028597,2]
[327363351,1716022237814,-283.93365516,0.00029,2]
[327363352,1716022237826,-1366.06634484,0.00029,2]
[327363353,1716022237835,-250.0,0.00029006,2]
[327363354,1716022237845,-245.8,0.00029011,2]
[327363355,1716022237854,-500.0,0.00029021,2]
[327363356,1716022237863,-245.8,0.0002909,2]
[327363357,1716022237872,-245.8,0.0002917,2]
[327363358,1716022237883,-153.29,0.00029249,120]
[327363359,1716022237892,-1852.42,0.00029249,2]
[327363360,1716022237901,-245.8,0.00029249,2]
[327363361,1716022237911,-2333.98,0.00029285,2]
[327363362,1716022237920,-1500.0,0.00029314,2]
[327363363,1716022237930,-245.8,0.00029329,2]
[327363364,1716022237939,-156.0,0.00029349,2]
[327363365,1716022237949,-245.8,0.00029409,2]
[327363366,1716022237958,-2000.0,0.00029429,2]
[327363367,1716022237968,-245.8,0.00029488,2]
[327363368,1716022237977,-225.59952986,0.000295,3]
[327363369,1716022237986,-245.8,0.00029568,2]
[327363370,1716022237995,-245.8,0.00029647,2]
[327363371,1716022238005,-2318.96,0.0002971,2]
[327363372,1716022238014,-245.8,0.00029727,2]
[327363373,1716022238023,-494.68298429,0.00029751,2]
[327363374,1716022238035,-710.733,0.00029751,2]
[327363375,1716022238047,-1483.70401571,0.00029751,2]
[327363376,1716022238056,-200.0,0.0002976,2]
[327363377,1716022238066,-245.8,0.00029806,2]
[327363378,1716022238075,-1000.0,0.00029864,2]
[327363379,1716022238084,-881.9208,0.0002987,2]
[327363380,1716022238093,-245.8,0.00029886,2]
[327363381,1716022238103,-600.97,0.00029891,2]
[327363383,1716022238112,-245.8,0.00029965,2]
[327363385,1716022238121,-70000.0,0.0002997,120]
[327363386,1716022238130,-374.80826011,0.0002997,2]
[327363388,1716022238141,-5487.84503293,0.0003,2]
[327363390,1716022238150,-23803.93424964,0.0003,4]
[327363392,1716022238159,-245.8,0.00030045,2]
[327363394,1716022238168,-245.8,0.00030125,2]
[327363396,1716022238176,-245.8,0.00030204,2]
[327363397,1716022238185,-245.8,0.00030284,2]
[327363399,1716022238194,-250.0,0.00030359,2]
[327363401,1716022238203,-245.8,0.00030363,2]
[327363403,1716022238217,-245.8,0.00030443,2]
[327363405,1716022238226,-154.13,0.00030521,2]
[327363407,1716022238235,-245.8,0.00030522,2]
[327363408,1716022238244,-154.13,0.0003053,2]
[327363410,1716022238255,-154.13,0.00030539,2]
[327363412,1716022238264,-154.13,0.00030548,2]
[327363414,1716022238273,-154.13,0.00030557,2]
[327363416,1716022238281,-154.13,0.00030566,2]
[327363418,1716022238291,-154.13,0.00030575,2]
[327363419,1716022238301,-154.13,0.00030584,2]
[327363420,1716022238311,-154.13,0.00030593,2]
[327363421,1716022238320,-1830.54,0.00030595,2]
[327363422,1716022238328,-154.13,0.00030602,2]
[327363423,1716022238338,-154.13,0.00030611,2]
[327363424,1716022238347,-151.18,0.00030612,2]
[327363425,1716022238356,-154.13,0.0003062,2]
[327363426,1716022238365,-154.13,0.00030629,2]
[327363427,1716022238374,-154.13,0.00030638,2]
[327363428,1716022238384,-154.13,0.00030647,2]
[327363429,1716022238393,-154.13,0.00030656,2]
[327363430,1716022238403,-154.13,0.00030665,2]
[327363431,1716022238412,-154.13,0.00030674,2]
[327363432,1716022238421,-155.85,0.00030749,2]
[327363433,1716022238430,-1700.0,0.00031,2]
[327363434,1716022238439,-333.25588851,0.00032,4]
[327363435,1716022238449,-151.0,0.00032179,2]
[327363436,1716022238458,-901.4,0.00032514,2]
[327363437,1716022238466,-302.0,0.0003272,4]
[327363438,1716022238475,-1318.76,0.00032869,2]
[327363439,1716022238485,-200.0,0.000329,12]
[327363440,1716022238494,-82480.49175322,0.00032991,4]
[327363441,1716022238506,-804.39789839,0.00032991,4]
[327363442,1716022238516,-460.6637709,0.00032991,4]
[327363443,1716022238532,-877.21110628,0.00032991,4]
[327363444,1716022238542,-2368.09616802,0.00032991,4]
[327363445,1716022238553,-2491.19304026,0.00032991,4]
[327363446,1716022238568,-11054.10952141,0.00032991,4]
[327363447,1716022238587,-16934.04267543,0.00032991,4]
[327363448,1716022238605,-10000.0483632,0.00032991,4]
[327363449,1716022238617,-797340.97944386,0.00032991,4]
[327363450,1716022238626,-23900.0,0.00032992,2]
[327363451,1716022238635,-1750.0,0.00033,2]
[327363452,1716022238645,-153.3,0.00033162,120]
[327363453,1716022238654,-165.15,0.00033162,2]
[327363454,1716022238663,-653.85,0.00033174,2]
[327363455,1716022238673,-151.86,0.00033201,120]
[327363456,1716022238682,-604.0,0.0003327,7]
[327363457,1716022238691,-290.65,0.00033641,2]
[327363458,1716022238700,-175.50655605,0.00033796,6]
[327363459,1716022238709,-500.0,0.000338,12]
[327363460,1716022238719,-155.85,0.00033821,2]
[327363461,1716022238728,-700.0,0.000339,12]
[327363462,1716022238736,-1336.35,0.00034051,2]
[327363463,1716022238745,-153.29,0.00034124,120]
[327363464,1716022238754,-56935.54022954,0.00034285,2]
[327363465,1716022238763,-212.65714406,0.0003433,2]
[327363466,1716022238772,-152.86,0.00034475,2]
[327363467,1716022238781,-161.49337745,0.000349,2]
[327363468,1716022238790,-150.90275448,0.000349,7]
[327363469,1716022238800,-1800.0,0.00035,2]
[327363470,1716022238809,-901.4,0.00035254,2]
[327363471,1716022238818,-212.65714403,0.00035654,2]
[327363472,1716022238827,-483.18,0.00036033,2]
[327363473,1716022238836,-180.0,0.00036491,2]
[327363474,1716022238845,-2939.95210444,0.00036886,2]
[327363475,1716022238854,-155.85,0.00036893,2]
[327363476,1716022238863,-8501.9805,0.000369,2]
[327363477,1716022238872,-212.65714403,0.00036979,2]
[327363478,1716022238882,-1850.0,0.00037,2]
[327363479,1716022238892,-1391.1,0.00037461,2]
[327363480,1716022238900,-1441.84001218,0.000377,4]
[327363481,1716022238910,-408.79647482,0.00037741,4]
[327363482,1716022238919,-1195.13042286,0.00037742,4]
[327363483,1716022238928,-150.90275447,0.00037845,11]
[327363484,1716022238937,-901.4,0.00037994,2]
[327363485,1716022238946,-150.0,0.00038163,2]
[327363486,1716022238955,-150.0,0.00038251,2]
[327363487,1716022238964,-199.96781807,0.00038256,2]
[327363488,1716022238974,-150.0,0.00038286,2]
[327363489,1716022238983,-212.65714403,0.00038303,2]
[327363490,1716022238992,-164.31,0.00038328,2]
[327363491,1716022239001,-150.0,0.00038351,2]
[327363492,1716022239010,-28467.77011477,0.00038353,2]
[327363493,1716022239019,-500.0,0.00038356,16]
[327363494,1716022239028,-500.0,0.00038356,16]
[327363495,1716022239039,-500.0,0.00038356,16]
[327363496,1716022239048,-500.0,0.00038356,16]
[327363497,1716022239057,-500.0,0.00038356,16]
[327363498,1716022239067,-500.0,0.00038356,16]
[327363499,1716022239076,-500.0,0.00038356,16]
[327363500,1716022239085,-500.0,0.00038356,16]
[327363501,1716022239094,-500.0,0.00038356,16]
[327363502,1716022239104,-500.0,0.00038356,16]
[327363503,1716022239113,-500.0,0.00038356,16]
[327363504,1716022239122,-500.0,0.00038356,16]
[327363505,1716022239132,-500.0,0.00038356,16]
[327363506,1716022239142,-500.0,0.00038356,16]
[327363507,1716022239151,-500.0,0.00038356,16]
[327363508,1716022239161,-500.0,0.00038356,16]
[327363509,1716022239170,-500.0,0.00038356,16]
[327363510,1716022239180,-500.0,0.00038356,16]
[327363511,1716022239189,-500.0,0.00038356,16]
[327363512,1716022239199,-500.0,0.00038356,16]
[327363513,1716022239208,-500.0,0.00038356,16]
[327363514,1716022239222,-500.0,0.00038356,16]
[327363515,1716022239231,-500.0,0.00038356,16]
[327363516,1716022239241,-500.0,0.00038356,16]
[327363517,1716022239251,-500.0,0.00038356,16]
[327363518,1716022239262,-510.11309487,0.00038356,16]
[327363519,1716022239272,-622.91387172,0.00038356,16]
[327363520,1716022239282,-500.0,0.00038356,16]
[327363521,1716022239291,-500.0,0.00038356,16]
[327363522,1716022239304,-500.0,0.00038356,16]
[327363523,1716022239313,-500.0,0.00038356,16]
[327363524,1716022239323,-500.0,0.00038356,16]
[327363525,1716022239332,-500.0,0.00038356,16]
[327363526,1716022239341,-500.0,0.00038356,16]
[327363527,1716022239351,-500.0,0.00038356,16]
[327363528,1716022239361,-500.0,0.00038356,16]
[327363529,1716022239370,-500.0,0.00038356,16]
[327363530,1716022239381,-500.0,0.00038356,16]
[327363531,1716022239391,-332.53611803,0.00038356,16]
[327363533,1716022239520,-500.0,0.00038356,16]
[327363534,1716022239530,-500.0,0.00038356,16]
[327363535,1716022239540,-500.0,0.00038356,16]
[327363536,1716022239549,-500.0,0.00038356,16]
[327363537,1716022239559,-597.30197807,0.00038356,16]
[327363538,1716022239568,-500.0,0.00038356,16]
[327363539,1716022239578,-500.0,0.00038356,16]
[327363540,1716022239587,-500.0,0.00038356,16]
[327363541,1716022239596,-500.0,0.00038356,16]
[327363542,1716022239605,-500.0,0.00038356,16]
[327363543,1716022239615,-500.0,0.00038356,16]
[327363544,1716022239624,-500.0,0.00038356,16]
[327363545,1716022239633,-218.23400189,0.00038356,16]
[327363546,1716022239643,-500.0,0.00038356,16]
[327363547,1716022239652,-500.0,0.00038356,16]
[327363548,1716022239662,-500.0,0.00038356,16]
[327363549,1716022239671,-500.0,0.00038356,16]
[327363550,1716022239681,-500.0,0.00038356,16]
[327363551,1716022239691,-527.20464128,0.00038356,16]
[327363552,1716022239700,-500.0,0.00038356,16]
[327363553,1716022239710,-500.0,0.00038356,16]
[327363554,1716022239719,-500.0,0.00038356,16]
[327363558,1716022239730,-527.77626679,0.00038356,16]
[327363562,1716022239739,-500.0,0.00038356,16]
[327363566,1716022239748,-500.0,0.00038356,16]
[327363568,1716022239757,-500.0,0.00038356,16]
[327363570,1716022239767,-500.0,0.00038356,16]
[327363571,1716022239777,-500.0,0.00038356,16]
[327363572,1716022239787,-500.0,0.00038356,16]
[327363573,1716022239796,-500.0,0.00038356,16]
[327363574,1716022239806,-180.64806679,0.00038356,16]
[327363575,1716022239816,-500.0,0.00038356,16]
[327363576,1716022239825,-500.0,0.00038356,16]
[327363577,1716022239834,-500.0,0.00038356,16]
[327363578,1716022239843,-500.0,0.00038356,16]
[327363579,1716022239853,-500.0,0.00038356,16]
[327363580,1716022239862,-500.0,0.00038356,16]
[327363581,1716022239872,-500.0,0.00038356,16]
[327363582,1716022239881,-500.0,0.00038356,16]
[327363583,1716022239892,-500.0,0.00038356,16]
[327363584,1716022239901,-500.0,0.00038356,16]
[327363585,1716022239910,-500.0,0.00038356,16]
[327363586,1716022239919,-500.0,0.00038356,16]
[327363587,1716022239928,-500.0,0.00038356,16]
[327363588,1716022239938,-500.0,0.00038356,16]
[327363589,1716022239947,-500.0,0.00038356,16]
[327363590,1716022239956,-500.0,0.00038356,16]
[327363591,1716022239965,-500.0,0.00038356,16]
[327363592,1716022239975,-500.0,0.00038356,16]
[327363593,1716022239984,-508.70035171,0.00038356,16]
[327363594,1716022239994,-500.0,0.00038356,16]
[327363595,1716022240003,-500.0,0.00038356,16]
[327363596,1716022240012,-500.0,0.00038356,16]
[327363597,1716022240022,-500.0,0.00038356,16]
[327363598,1716022240032,-500.0,0.00038356,16]
[327363599,1716022240041,-500.0,0.00038356,16]
[327363600,1716022240050,-629.20180802,0.00038356,16]
[327363601,1716022240059,-500.0,0.00038356,16]
[327363602,1716022240068,-500.0,0.00038356,16]
[327363603,1716022240078,-500.0,0.00038356,16]
[327363604,1716022240087,-500.0,0.00038356,16]
[327363605,1716022240096,-500.0,0.00038356,16]
[327363606,1716022240105,-500.0,0.00038356,16]
[327363607,1716022240115,-500.0,0.00038356,16]
[327363608,1716022240124,-500.0,0.00038356,16]
[327363609,1716022240134,-500.0,0.00038356,16]
[327363610,1716022240145,-500.0,0.00038356,16]
[327363611,1716022240154,-500.0,0.00038356,16]
[327363612,1716022240163,-500.0,0.00038356,16]
[327363613,1716022240173,-500.0,0.00038356,16]
[327363614,1716022240183,-512.95715484,0.00038356,16]
[327363615,1716022240192,-500.0,0.00038356,16]
[327363616,1716022240201,-500.0,0.00038356,16]
[327363617,1716022240212,-500.0,0.00038356,16]
[327363618,1716022240225,-500.0,0.00038356,16]
[327363619,1716022240235,-500.0,0.00038356,16]
[327363620,1716022240244,-500.0,0.00038356,16]
[327363621,1716022240254,-500.0,0.00038356,16]
[327363622,1716022240264,-500.0,0.00038356,16]
[327363623,1716022240274,-500.0,0.00038356,16]
[327363624,1716022240283,-150.0,0.00038356,16]
[327363625,1716022240293,-500.0,0.00038356,16]
[327363626,1716022240304,-500.0,0.00038356,16]
[327363627,1716022240313,-500.0,0.00038356,16]
[327363628,1716022240323,-500.0,0.00038356,16]
[327363629,1716022240333,-533.42054111,0.00038356,16]
[327363630,1716022240342,-500.0,0.00038356,16]
[327363631,1716022240351,-500.0,0.00038356,16]
[327363632,1716022240361,-500.0,0.00038356,16]
[327363633,1716022240371,-500.0,0.00038356,16]
[327363634,1716022240381,-500.0,0.00038356,16]
[327363635,1716022240391,-500.0,0.00038356,16]
[327363636,1716022240400,-505.81168361,0.00038356,16]
[327363637,1716022240410,-500.0,0.00038356,16]
[327363638,1716022240420,-510.19806702,0.00038356,16]
[327363639,1716022240430,-500.0,0.00038356,16]
[327363640,1716022240440,-500.0,0.00038356,16]
[327363641,1716022240450,-500.0,0.00038356,16]
[327363642,1716022240459,-500.0,0.00038356,16]
[327363643,1716022240469,-500.0,0.00038356,16]
[327363644,1716022240479,-500.0,0.00038356,16]
[327363645,1716022240489,-500.0,0.00038356,16]
[327363646,1716022240499,-500.0,0.00038356,16]
[327363647,1716022240508,-235.32043906,0.00038356,16]
[327363648,1716022240518,-500.0,0.00038356,16]
[327363649,1716022240528,-500.0,0.00038356,16]
[327363650,1716022240537,-500.0,0.00038356,16]
[327363651,1716022240547,-500.0,0.00038356,16]
[327363653,1716022240557,-500.0,0.00038356,16]
[327363654,1716022240566,-500.0,0.00038356,16]
[327363655,1716022240576,-500.0,0.00038356,16]
[327363656,1716022240585,-500.0,0.00038356,16]
[327363657,1716022240595,-500.0,0.00038356,16]
[327363658,1716022240605,-500.0,0.00038356,16]
[327363659,1716022240615,-500.0,0.00038356,16]
[327363660,1716022240625,-500.0,0.00038356,16]
[327363661,1716022240634,-519.82891044,0.00038356,16]
[327363662,1716022240645,-500.0,0.00038356,16]
[327363663,1716022240655,-500.0,0.00038356,16]
[327363664,1716022240664,-500.0,0.00038356,16]
[327363665,1716022240673,-500.0,0.00038356,16]
[327363666,1716022240683,-500.0,0.00038356,16]
[327363667,1716022240692,-500.0,0.00038356,16]
[327363668,1716022240701,-500.0,0.00038356,16]
[327363669,1716022240710,-500.0,0.00038356,16]
[327363670,1716022240720,-500.0,0.00038356,16]
[327363671,1716022240729,-500.0,0.00038356,16]
[327363672,1716022240738,-500.0,0.00038356,16]
[327363673,1716022240747,-500.0,0.00038356,16]
[327363674,1716022240757,-500.0,0.00038356,16]
[327363675,1716022240765,-500.0,0.00038356,16]
[327363676,1716022240775,-519.04552742,0.00038356,16]
[327363677,1716022240785,-500.0,0.00038356,16]
[327363678,1716022240794,-500.0,0.00038356,16]
[327363679,1716022240803,-500.0,0.00038356,16]
[327363680,1716022240813,-500.0,0.00038356,16]
[327363681,1716022240823,-500.0,0.00038356,16]
[327363682,1716022240832,-205.56618278,0.00038356,16]
[327363683,1716022240841,-500.0,0.00038356,16]
[327363684,1716022240850,-500.0,0.00038356,16]
[327363685,1716022240859,-500.0,0.00038356,16]
[327363686,1716022240868,-500.0,0.00038356,16]
[327363687,1716022240878,-500.0,0.00038356,16]
[327363688,1716022240887,-500.0,0.00038356,16]
[327363689,1716022240897,-500.0,0.00038356,16]
[327363690,1716022240906,-500.0,0.00038356,16]
[327363691,1716022240915,-500.0,0.00038356,16]
[327363692,1716022240924,-500.0,0.00038356,16]
[327363693,1716022240934,-523.23088932,0.00038356,16]
[327363694,1716022240944,-500.0,0.00038356,16]
[327363695,1716022240953,-500.0,0.00038356,16]
[327363696,1716022240963,-500.0,0.00038356,16]
[327363697,1716022240973,-500.0,0.00038356,16]
[327363698,1716022240983,-601.29,0.00038356,16]
[327363699,1716022240993,-601.29,0.00038356,16]
[327363700,1716022241002,-601.29,0.00038356,16]
[327363701,1716022241012,-601.29,0.00038356,16]
[327363702,1716022241021,-500.0,0.00038356,16]
[327363703,1716022241031,-500.0,0.00038356,16]
[327363704,1716022241041,-500.0,0.00038356,16]
[327363705,1716022241050,-500.0,0.00038356,16]
[327363706,1716022241060,-500.0,0.00038356,16]
[327363707,1716022241069,-500.0,0.00038356,16]
[327363708,1716022241079,-500.0,0.00038356,16]
[327363709,1716022241089,-500.0,0.00038356,16]
[327363710,1716022241098,-500.0,0.00038356,16]
[327363711,1716022241108,-423.91075779,0.00038356,16]
[327363712,1716022241117,-500.0,0.00038356,16]
[327363713,1716022241127,-500.0,0.00038356,16]
[327363714,1716022241136,-500.0,0.00038356,16]
[327363715,1716022241146,-500.0,0.00038356,16]
[327363716,1716022241155,-500.0,0.00038356,16]
[327363717,1716022241164,-500.0,0.00038356,16]
[327363718,1716022241174,-684.46,0.00038356,16]
[327363719,1716022241184,-684.46,0.00038356,16]
[327363720,1716022241193,-684.46,0.00038356,16]
[327363721,1716022241203,-684.46,0.00038356,16]
[327363722,1716022241213,-500.0,0.00038356,16]
[327363723,1716022241226,-500.0,0.00038356,16]
[327363724,1716022241236,-500.0,0.00038356,16]
[327363725,1716022241246,-504.943416,0.00038356,16]
[327363726,1716022241256,-500.0,0.00038356,16]
[327363727,1716022241267,-500.0,0.00038356,16]
[327363728,1716022241276,-8725.65,0.00038356,16]
[327363729,1716022241286,-500.0,0.00038356,16]
[327363730,1716022241403,-8725.65,0.00038356,16]
[327363731,1716022241414,-500.0,0.00038356,16]
[327363732,1716022241424,-500.0,0.00038356,16]
[327363733,1716022241435,-500.0,0.00038356,16]
[327363734,1716022241444,-8725.65,0.00038356,16]
[327363735,1716022241454,-500.0,0.00038356,16]
[327363736,1716022241464,-8725.65,0.00038356,16]
[327363737,1716022241474,-500.0,0.00038356,16]
[327363738,1716022241483,-500.0,0.00038356,16]
[327363739,1716022241492,-1226.38,0.00038356,16]
[327363740,1716022241502,-1226.38,0.00038356,16]
[327363741,1716022241511,-1226.38,0.00038356,16]
[327363742,1716022241521,-1226.38,0.00038356,16]
[327363743,1716022241530,-150.0,0.00038356,16]
[327363744,1716022241540,-150.0,0.00038356,16]
[327363745,1716022241549,-150.0,0.00038356,16]
[327363746,1716022241558,-500.0,0.00038356,16]
[327363747,1716022241567,-150.0,0.00038356,16]
[327363748,1716022241577,-500.0,0.00038356,16]
[327363749,1716022241587,-278.3408199,0.00038356,16]
[327363750,1716022241596,-500.0,0.00038356,16]
[327363751,1716022241606,-500.0,0.00038356,16]
[327363752,1716022241616,-500.0,0.00038356,16]
[327363753,1716022241625,-500.0,0.00038356,16]
[327363754,1716022241636,-500.0,0.00038356,16]
[327363755,1716022241645,-500.0,0.00038356,16]
[327363756,1716022241654,-500.0,0.00038356,16]
[327363757,1716022241663,-500.0,0.00038356,16]
[327363758,1716022241673,-500.0,0.00038356,16]
[327363759,1716022241682,-500.0,0.00038356,16]
[327363760,1716022241691,-486.76120264,0.00038356,16]
[327363761,1716022241701,-500.0,0.00038356,16]
[327363762,1716022241710,-534.83,0.00038356,16]
[327363763,1716022241720,-500.0,0.00038356,16]
[327363764,1716022241729,-534.83,0.00038356,16]
[327363765,1716022241738,-500.0,0.00038356,16]
[327363766,1716022241747,-534.83,0.00038356,16]
[327363767,1716022241757,-500.0,0.00038356,16]
[327363768,1716022241766,-534.83,0.00038356,16]
[327363769,1716022241775,-500.0,0.00038356,16]
[327363770,1716022241785,-500.0,0.00038356,16]
[327363771,1716022241795,-500.0,0.00038356,16]